{"text_format":"3","workbook":"xlsx","n_sheets":1,"sheets":["Presión arterial y glucemia"],"not_rendered":{"defined_names":9},"read":"whole","date_system":"1900"}

{"sheet":"Presión arterial y glucemia","index":0,"n_rows":13,"n_cols":11,"rows_kept":13,"merged":[[0,1,4,3],[0,4,0,9],[1,4,1,6],[1,7,1,9],[3,7,4,7],[3,8,4,8],[3,9,4,9]]}
[null,"Seguimiento de presión arterial y glucemia",null,null,"Personaliza los valores de la escala en las celdas E2 a J5, a continuación."]
[{"$nulls":4},"PRESIÓN ARTERIAL",null,null,"ESCALA DE GLUCOSA"]
[{"$nulls":4},120,"SISTÓLICA",140,70,100,150]
[{"$nulls":4},80,"DIASTÓLICA",90,"BAJA","NORMAL","Alta"]
[{"$nulls":4},"PRESIÓN DESEADA",null,"LLAMAR AL MÉDICO"]
[null,"Fecha","Hora","Evento","Sistólica","Diastólica","Frecuencia cardíaca","Glucosa","Nivel","Estado","Notas"]
[null,{"$f":"TODAY()","v":"2018-06-28"},"06:00:00","Despertar",129,79,72,55,{"$f":"PresiónArterialYGlucemia[[#This Row],[Glucosa]]","v":55},{"$f":"IFERROR(IF(PresiónArterialYGlucemia[[#This Row],[Nivel]]=0,\"\",IF(PresiónArterialYGlucemia[[#This Row],[Nivel]]<=GBaja,\"BAJA\",IF(AND(PresiónArterialYGlucemia[[#This Row],[Nivel]]>GBaja,PresiónArterialYGlucemia[[#This Row],[Nivel]]<GAlta),\"NORMAL\",\"Alta\"))), \"\")","v":"BAJA"}]
[null,{"$f":"TODAY()","v":"2018-06-28"},"07:00:00","Antes de la comida",120,80,74,70,{"$f":"PresiónArterialYGlucemia[[#This Row],[Glucosa]]","v":70},{"$f":"IFERROR(IF(PresiónArterialYGlucemia[[#This Row],[Nivel]]=0,\"\",IF(PresiónArterialYGlucemia[[#This Row],[Nivel]]<=GBaja,\"BAJA\",IF(AND(PresiónArterialYGlucemia[[#This Row],[Nivel]]>GBaja,PresiónArterialYGlucemia[[#This Row],[Nivel]]<GAlta),\"NORMAL\",\"Alta\"))), \"\")","v":"BAJA"}]
[null,"2018-06-28","09:00:00","Después de la comida",133,80,75,75,{"$f":"PresiónArterialYGlucemia[[#This Row],[Glucosa]]","v":75},{"$f":"IFERROR(IF(PresiónArterialYGlucemia[[#This Row],[Nivel]]=0,\"\",IF(PresiónArterialYGlucemia[[#This Row],[Nivel]]<=GBaja,\"BAJA\",IF(AND(PresiónArterialYGlucemia[[#This Row],[Nivel]]>GBaja,PresiónArterialYGlucemia[[#This Row],[Nivel]]<GAlta),\"NORMAL\",\"Alta\"))), \"\")","v":"NORMAL"}]
[null,"2018-06-28","10:00:00","Solo PA",143,91,75,190,{"$f":"PresiónArterialYGlucemia[[#This Row],[Glucosa]]","v":190},{"$f":"IFERROR(IF(PresiónArterialYGlucemia[[#This Row],[Nivel]]=0,\"\",IF(PresiónArterialYGlucemia[[#This Row],[Nivel]]<=GBaja,\"BAJA\",IF(AND(PresiónArterialYGlucemia[[#This Row],[Nivel]]>GBaja,PresiónArterialYGlucemia[[#This Row],[Nivel]]<GAlta),\"NORMAL\",\"Alta\"))), \"\")","v":"Alta"}]
[null,"2018-06-28","12:00:00","Antes de la comida",141,84,70,140,{"$f":"PresiónArterialYGlucemia[[#This Row],[Glucosa]]","v":140},{"$f":"IFERROR(IF(PresiónArterialYGlucemia[[#This Row],[Nivel]]=0,\"\",IF(PresiónArterialYGlucemia[[#This Row],[Nivel]]<=GBaja,\"BAJA\",IF(AND(PresiónArterialYGlucemia[[#This Row],[Nivel]]>GBaja,PresiónArterialYGlucemia[[#This Row],[Nivel]]<GAlta),\"NORMAL\",\"Alta\"))), \"\")","v":"NORMAL"}]
[null,{"$f":"TODAY()","v":"2018-06-28"},"15:00:00","Después de la comida",132,80,68,90,{"$f":"PresiónArterialYGlucemia[[#This Row],[Glucosa]]","v":90},{"$f":"IFERROR(IF(PresiónArterialYGlucemia[[#This Row],[Nivel]]=0,\"\",IF(PresiónArterialYGlucemia[[#This Row],[Nivel]]<=GBaja,\"BAJA\",IF(AND(PresiónArterialYGlucemia[[#This Row],[Nivel]]>GBaja,PresiónArterialYGlucemia[[#This Row],[Nivel]]<GAlta),\"NORMAL\",\"Alta\"))), \"\")","v":"NORMAL"},"Tomó medicamento para la presión arterial con los alimentos"]
[null,"Promedios",null,null,{"$f":"SUBTOTAL(101,PresiónArterialYGlucemia[Sistólica])","v":133},{"$f":"SUBTOTAL(101,PresiónArterialYGlucemia[Diastólica])","v":{"v":82.33333333333333,"d":"82"}},{"$f":"SUBTOTAL(101,PresiónArterialYGlucemia[Frecuencia cardíaca])","v":{"v":72.33333333333333,"d":"72"}},{"$f":"SUBTOTAL(101,PresiónArterialYGlucemia[Glucosa])","v":{"v":103.33333333333333,"d":"103"}}]